bitfinex-derivatives/quotes_BTCF0:USTF0_20250509
["timestamp","ask_amount","ask_price","bid_price","bid_amount"]
[1746828820741,1.10821575,103060.0,103050.0,0.71490636]
[1746828821041,0.95647575,103060.0,103050.0,0.74640636]
[1746828821743,0.62919991,103060.0,103050.0,0.9374302]
[1746828821927,0.53325191,103060.0,103050.0,1.22700636]
[1746828822843,0.53225191,103060.0,103050.0,1.22700636]
[1746828823443,0.53225191,103060.0,103050.0,1.22900636]
[1746828823745,0.43238089,103060.0,103050.0,1.22900636]
[1746828825046,0.43238089,103060.0,103050.0,1.24590528]
[1746828825643,0.43238089,103060.0,103050.0,1.24592097]
[1746828828447,0.43238089,103060.0,103050.0,1.31714481]
[1746828828844,0.43238089,103060.0,103050.0,1.24592097]
[1746828831043,0.43238089,103060.0,103050.0,1.24592283]
[1746828832844,0.43238089,103060.0,103050.0,1.23100636]
[1746828833150,0.43238089,103060.0,103050.0,1.24592143]
[1746828836552,0.43238089,103060.0,103050.0,1.24591978]
[1746828837253,0.46468089,103060.0,103050.0,1.24591978]
[1746828838453,0.46468089,103060.0,103050.0,1.24591945]
[1746828839154,0.56355191,103060.0,103050.0,1.24591945]
[1746828840253,0.56355191,103060.0,103050.0,1.24591923]
[1746828840848,0.53125191,103060.0,103050.0,1.24591923]
[1746828841651,0.26719991,103060.0,103050.0,1.31714307]
[1746828841845,0.26719991,103060.0,103050.0,1.37714307]
[1746828842046,0.26719991,103060.0,103050.0,1.31714307]
[1746828842352,0.26719991,103060.0,103050.0,1.64713982]
[1746828843450,0.26719991,103060.0,103050.0,1.64713886]
[1746828845143,0.26719991,103060.0,103050.0,1.64713844]
[1746828847156,0.16832889,103060.0,103050.0,1.64713844]
[1746828850449,0.16832889,103060.0,103050.0,1.6322302]
[1746828850655,0.16832889,103060.0,103050.0,1.64714164]
[1746828855952,0.16832889,103060.0,103050.0,1.6322302]
[1746828856155,0.16832889,103060.0,103050.0,1.64714022]
[1746828857855,0.16832889,103060.0,103050.0,1.64713989]
[1746828858254,0.20012889,103060.0,103050.0,1.64713989]
[1746828859665,0.20012889,103060.0,103050.0,1.64714031]
[1746828863862,0.23302889,103060.0,103050.0,1.64714031]
[1746828868871,0.23302889,103060.0,103050.0,1.64708841]
[1746828870664,0.23302889,103060.0,103050.0,1.6322302]
[1746828870876,0.23302889,103060.0,103050.0,1.64709228]
[1746828872574,0.23302889,103060.0,103050.0,1.64709386]
[1746828876274,0.23302889,103060.0,103050.0,1.64709593]
[1746828876975,0.26332889,103060.0,103050.0,1.64709593]
[1746828879170,0.26332889,103060.0,103050.0,1.71831977]
[1746828879367,0.26332889,103060.0,103050.0,1.64709593]
[1746828879567,0.26332889,103060.0,103050.0,1.57587209]
[1746828879770,0.26332889,103060.0,103050.0,1.64709593]
[1746828883477,0.26332889,103060.0,103050.0,1.64708745]
[1746828885278,0.26332889,103060.0,103050.0,1.64708632]
[1746828888882,0.26332889,103060.0,103050.0,1.64708528]
[1746828894281,0.26332889,103060.0,103050.0,1.64708471]
[1746828896883,0.23302889,103060.0,103050.0,1.64708471]
[1746828902486,0.23302889,103060.0,103050.0,1.6322302]
[1746828902687,0.23302889,103060.0,103050.0,1.64708605]
[1746828903189,0.26562889,103060.0,103050.0,1.64708605]
[1746828903379,0.26562889,103060.0,103050.0,1.6322302]
[1746828903779,0.26562889,103060.0,103050.0,1.64708607]
[1746828911790,0.26562889,103060.0,103050.0,1.28628607]
[1746828911996,0.26562889,103060.0,103050.0,1.64708607]
[1746828913182,0.26562889,103060.0,103050.0,1.6322302]
[1746828913387,0.26562889,103060.0,103050.0,1.64708569]
[1746828924001,0.26562889,103060.0,103050.0,1.6470781]
[1746828927607,0.26562889,103060.0,103050.0,1.64707901]
[1746828928215,0.26562889,103060.0,103050.0,1.61557901]
[1746828929512,0.26562889,103060.0,103050.0,1.61557903]
[1746828936209,0.26562889,103060.0,103050.0,1.61557797]
[1746828936617,0.26562889,103060.0,103050.0,1.61557845]
[1746828937308,0.26562889,103060.0,103050.0,1.64787845]
[1746828938517,0.26562889,103060.0,103050.0,1.64787809]
[1746828942220,0.26562889,103060.0,103050.0,1.6478783]
[1746828944019,0.26562889,103060.0,103050.0,1.64787993]
[1746828945523,0.26562889,103060.0,103050.0,0.92627993]
[1746828945709,0.26562889,103060.0,103050.0,1.64788092]
[1746828947525,0.26562889,103060.0,103050.0,1.64788319]
[1746828954723,0.26562889,103060.0,103050.0,1.64788377]
[1746828956527,0.26562889,103060.0,103050.0,1.64788849]
[1746828964838,0.23302889,103060.0,103050.0,1.64788849]
[1746828969038,0.23302889,103060.0,103050.0,1.57666465]
[1746828969239,0.23302889,103060.0,103050.0,1.64788849]
[1746828970937,0.23302889,103060.0,103050.0,1.57666465]
[1746828971140,0.23302889,103060.0,103050.0,1.64788849]
[1746828971340,0.23302889,103060.0,103050.0,1.31788849]
[1746828973744,0.23302889,103060.0,103050.0,1.31789177]
[1746828974341,0.23302889,103060.0,103050.0,1.3030302]
[1746828974544,0.23302889,103060.0,103050.0,1.31789183]
[1746828975844,0.23302889,103060.0,103050.0,1.32789183]
[1746828976053,0.26352889,103060.0,103050.0,1.22436799]
[1746828976345,0.26352889,103060.0,103050.0,1.40359183]
[1746828976933,0.52880473,103060.0,103050.0,0.83749719]
[1746828977131,0.82880473,103060.0,103050.0,0.95549719]
[1746828977336,0.82880473,103060.0,103050.0,1.14956799]
[1746828979158,0.82880473,103060.0,103050.0,1.14955928]
[1746828979346,0.92767575,103060.0,103050.0,1.14955928]
[1746828980955,0.92767575,103060.0,103050.0,1.14955137]
[1746828981150,0.92767575,103060.0,103050.0,0.78875137]
[1746828986350,0.82880473,103060.0,103050.0,0.78875137]
[1746828986952,0.82880473,103060.0,103050.0,0.59468057]
[1746828986953,0.90002857,103060.0,103050.0,0.59468057]
[1746828987152,0.82880473,103060.0,103050.0,0.78875137]
[1746828988951,0.82880473,103060.0,103050.0,0.67075137]
[1746828992453,0.90002857,103060.0,103050.0,0.67075137]
[1746828993458,0.90002857,103060.0,103050.0,0.67073581]
[1746828995357,0.82880473,103060.0,103050.0,0.67073581]
[1746828995554,0.82880473,103060.0,103050.0,0.47666501]
[1746828996255,0.82880473,103060.0,103050.0,0.11586501]
[1746828996456,0.82880473,103060.0,103050.0,0.47666501]
[1746828998957,0.82880473,103060.0,103050.0,0.47666451]
[1746828999560,0.82880473,103060.0,103050.0,0.70293531]
[1746829001852,0.92767575,103060.0,103050.0,0.70293531]
[1746829002057,0.92767575,103060.0,103050.0,0.34213531]
[1746829002458,0.92767575,103060.0,103050.0,0.37514146]
[1746829004553,0.92767575,103060.0,103050.0,0.73394146]
[1746829005156,0.92867575,103060.0,103050.0,0.73194146]
[1746829005862,0.92867575,103060.0,103050.0,0.37114146]
[1746829006161,0.92767575,103060.0,103050.0,0.37114146]
[1746829006656,0.92867575,103060.0,103050.0,0.37114146]
[1746829007057,0.92867575,103060.0,103050.0,0.73194146]
[1746829007257,0.92767575,103060.0,103050.0,0.73194146]
[1746829007752,0.92767575,103060.0,103050.0,0.71710636]
[1746829007958,0.92767575,103060.0,103050.0,0.37110947]
[1746829008466,1.05128887,103060.0,103050.0,0.37110947]
[1746829008764,1.05128887,103060.0,103050.0,0.37110993]
[1746829008966,1.05128887,103060.0,103050.0,0.73190993]
[1746829009668,1.05128887,103060.0,103050.0,0.73191025]
[1746829011166,1.05128887,103060.0,103050.0,0.37111025]
[1746829011669,1.05128887,103060.0,103050.0,0.37111082]
[1746829012267,1.05128887,103060.0,103050.0,0.73191082]
[1746829016168,1.12251271,103060.0,103050.0,0.73191082]
[1746829016575,0.99889959,103060.0,103050.0,0.73191082]
[1746829017074,0.92767575,103060.0,103050.0,0.73191142]
[1746829018775,0.92767575,103060.0,103050.0,0.71710636]
[1746829018976,0.92767575,103060.0,103050.0,0.73191158]
[1746829019575,0.99889959,103060.0,103050.0,0.73191158]
[1746829022076,0.99889959,103060.0,103050.0,0.53784078]
[1746829022473,0.99889959,103060.0,103050.0,0.73191158]
[1746829023078,0.92767575,103060.0,103050.0,0.73191158]
[1746829024284,0.95241785,103060.0,103050.0,0.73191158]
[1746829024983,1.02364169,103060.0,103050.0,0.73191158]
[1746829025486,0.95241785,103060.0,103050.0,0.73191158]
[1746829025682,0.95241785,103060.0,103050.0,0.53784078]
[1746829025985,1.02364169,103060.0,103050.0,0.73191158]
[1746829026891,1.02364169,103060.0,103050.0,0.53784078]
[1746829027493,1.02364169,103060.0,103050.0,0.53784131]
[1746829027794,1.02364169,103060.0,103050.0,0.73191211]
[1746829028597,1.02364169,103060.0,103050.0,0.53784131]
[1746829029096,1.02364169,103060.0,103050.0,0.73191211]
[1746829029298,1.02364169,103060.0,103050.0,0.53784131]
[1746829029499,1.02364169,103060.0,103050.0,0.73191211]
[1746829030193,1.02364169,103060.0,103050.0,0.17704131]
[1746829030399,1.12067769,103060.0,103050.0,0.11184131]
[1746829031300,1.12067769,103060.0,103050.0,0.14324131]
[1746829031596,1.23863769,103060.0,103050.0,0.11184131]
[1746829031792,0.1940896,103040.0,103030.0,0.0314]
[1746829031994,1.06733728,103040.0,103030.0,0.0314]
[1746829032195,1.06733728,103040.0,103030.0,0.12843556]
[1746829032196,1.32063728,103040.0,103030.0,0.12843556]
[1746829032694,0.96089617,103040.0,103030.0,0.12843556]
[1746829032900,0.96089617,103040.0,103030.0,0.13543556]
[1746829033103,1.53671217,103040.0,103030.0,0.007]
[1746829033798,0.1941085,103030.0,103020.0,0.15175341]
[1746829033988,1.09995618,103030.0,103020.0,0.15175341]
[1746829034192,1.35702018,103030.0,103020.0,0.15175341]
[1746829034388,0.1941461,103010.0,103000.0,0.34563207]
[1746829034593,1.03845267,103010.0,103000.0,0.34563207]
[1746829034799,1.10105267,103010.0,103000.0,0.44672352]
[1746829035003,1.02982883,103010.0,103000.0,0.44672352]
[1746829035205,1.18982883,103010.0,103000.0,0.47702352]
[1746829035507,1.18982883,103010.0,103000.0,0.48202352]
[1746829036607,1.18982883,103010.0,103000.0,0.24039145]
[1746829037303,1.19710883,103010.0,103000.0,0.24039145]
[1746829038606,1.21172127,103010.0,103000.0,0.24039145]
[1746829039500,1.21172127,103010.0,103000.0,0.11302764]
[1746829039501,1.28294511,103010.0,103000.0,0.11302764]
[1746829039998,1.21172127,103010.0,103000.0,0.11302764]
[1746829040801,1.28550754,103010.0,103000.0,0.11302764]
[1746829041412,1.38259154,103010.0,103000.0,0.11302764]
[1746829041607,0.194165,103000.0,102990.0,0.03618078]
[1746829041803,0.93037268,103000.0,102990.0,0.00398078]
[1746829042110,1.09037268,103000.0,102990.0,0.00398078]
[1746829042300,1.45117268,103000.0,102990.0,0.00398078]
[1746829042699,1.45223157,103000.0,102990.0,0.00398078]
[1746829042905,1.45223157,103000.0,102990.0,0.00998078]
[1746829043109,1.45223157,103000.0,102990.0,0.01598078]
[1746829045414,1.45223157,103000.0,102990.0,0.04698078]
[1746829050213,1.57051157,103000.0,102990.0,0.04698078]
[1746829053812,0.90224773,103000.0,102990.0,0.05105773]
[1746829054116,0.73522389,103000.0,102990.0,0.80745746]
[1746829054316,0.73522389,103000.0,102990.0,0.83875746]
[1746829054617,0.56522389,103000.0,102990.0,0.85358147]
[1746829055114,0.40522389,103000.0,102990.0,0.85358147]
[1746829055516,0.47644773,103000.0,102990.0,0.78235763]
[1746829056416,0.47644773,103000.0,102990.0,0.78236956]
[1746829056714,0.54767157,103000.0,102990.0,0.58818576]
[1746829056918,0.64017157,103000.0,102990.0,0.57334982]
[1746829057120,0.56894773,103000.0,102990.0,0.57334982]
[1746829057317,0.72894773,103000.0,102990.0,0.57334982]
[1746829057507,0.80017157,103000.0,102990.0,0.57334982]
[1746829057710,0.80017157,103000.0,102990.0,0.5550967]
[1746829058308,0.80017157,103000.0,102990.0,0.55509676]
[1746829059515,0.80017157,103000.0,102990.0,0.19429676]
[1746829060217,0.80017157,103000.0,102990.0,0.19431881]
[1746829060918,0.65772389,103000.0,102990.0,0.19431881]
[1746829061118,0.65772389,103000.0,102990.0,0.55511881]
[1746829061318,0.66704773,103000.0,102990.0,0.74930261]
[1746829061618,0.56522389,103000.0,102990.0,0.74930261]
[1746829061820,0.56522389,103000.0,102990.0,0.74933424]
[1746829062207,0.40522389,103000.0,102990.0,0.74933424]
[1746829062412,0.47644773,103000.0,102990.0,0.74933424]
[1746829062609,0.50964773,103000.0,102990.0,0.74933424]
[1746829064214,0.43842389,103000.0,102990.0,0.74933424]
[1746829064413,0.40522389,103000.0,102990.0,0.74933424]
[1746829065022,0.40522389,103000.0,102990.0,0.38853424]
[1746829065216,0.47644773,103000.0,102990.0,0.3886926]
[1746829065521,0.50744773,103000.0,102990.0,0.38871673]
[1746829066023,0.50744773,103000.0,102990.0,0.19453293]
[1746829066218,0.50744773,103000.0,102990.0,0.74951673]
[1746829066422,0.50744773,103000.0,102990.0,0.19453293]
[1746829066423,0.57867157,103000.0,102990.0,0.19453293]
[1746829066625,0.61187157,103000.0,102990.0,0.19453293]
[1746829067125,0.77187157,103000.0,102990.0,0.19453343]
[1746829067924,0.81209505,103000.0,102990.0,0.19453343]
[1746829068431,0.93129505,103000.0,102990.0,0.19453343]
[1746829070829,0.93129505,103000.0,102990.0,0.19453414]
[1746829071727,0.93129505,103000.0,102990.0,0.38871794]
[1746829072029,0.93129505,103000.0,102990.0,0.74951794]
[1746829072030,0.67021524,103000.0,102990.0,0.74951794]
[1746829072332,0.51021524,103000.0,102990.0,0.90951794]
[1746829072827,0.51021524,103000.0,102990.0,0.54871794]
[1746829073229,0.51021524,103000.0,102990.0,0.74951794]
[1746829073527,0.51021524,103000.0,102990.0,0.38871794]
[1746829073729,0.51021524,103000.0,102990.0,0.74951794]
[1746829073928,0.51021524,103000.0,102990.0,0.38871794]
[1746829074429,0.51021524,103000.0,102990.0,0.74951855]
[1746829075831,0.51021524,103000.0,102990.0,0.38871855]
[1746829076028,0.61889505,103000.0,102990.0,0.49303475]
[1746829076221,1.01159505,103000.0,102990.0,0.03514266]
[1746829076425,1.01159505,103000.0,102990.0,0.19433475]
[1746829077135,1.17159505,103000.0,102990.0,0.19433475]
[1746829077332,1.17159505,103000.0,102990.0,0.13223475]
[1746829077735,1.17159505,103000.0,102990.0,0.12723475]
[1746829078032,1.17159505,103000.0,102990.0,0.12723796]
[1746829078435,1.17159505,103000.0,102990.0,0.12223796]
[1746829079435,1.17159505,103000.0,102990.0,0.15283796]
[1746829079639,1.26135088,103000.0,102990.0,0.15283796]
[1746829081037,1.26135088,103000.0,102990.0,0.15283976]
[1746829083138,1.29335088,103000.0,102990.0,0.15283976]
[1746829084440,1.29335088,103000.0,102990.0,0.15284187]
[1746829085544,1.29335088,103000.0,102990.0,0.18614187]
[1746829085735,0.82387107,103000.0,102990.0,0.38032567]
[1746829085934,0.79197107,103000.0,102990.0,0.84980548]
[1746829086135,0.56897107,103000.0,102990.0,0.99948548]
[1746829086331,0.71671236,103000.0,102990.0,0.9994858]
[1746829087033,0.72399236,103000.0,102990.0,0.9994858]
[1746829087238,0.72399236,103000.0,102990.0,1.1594858]
[1746829087438,0.51399236,103000.0,102990.0,1.1594858]
[1746829087737,0.31982736,103000.0,102990.0,1.1594858]
[1746829087942,0.51399236,103000.0,102990.0,1.1594858]
[1746829088144,0.51399236,103000.0,102990.0,1.15948118]
[1746829088539,0.51399236,103000.0,102990.0,1.15540423]
[1746829090349,0.27667504,103000.0,102990.0,1.15540423]
[1746829090546,0.27667504,103000.0,102990.0,1.28540423]
[1746829091849,0.08251004,103000.0,102990.0,1.28540423]
[1746829093251,0.00833889,103000.0,102990.0,1.12540423]
[1746829093651,0.00833889,103000.0,102990.0,1.12538786]
[1746829094150,0.00833889,103000.0,102990.0,1.28538786]
[1746829094853,0.00833889,103000.0,102990.0,1.64618786]
[1746829095239,0.00833889,103000.0,102990.0,1.48618786]
[1746829097349,0.00833889,103000.0,102990.0,1.48618229]
[1746829100854,0.00833889,103000.0,102990.0,1.48617687]
[1746829102655,0.00833889,103000.0,102990.0,1.48617569]
[1746829103759,0.00833889,103000.0,102990.0,1.44877318]
[1746829105255,0.20250389,103000.0,102990.0,1.44877318]
[1746829105557,0.23530389,103000.0,102990.0,1.44877318]
[1746829105754,0.23530389,103000.0,102990.0,1.45272838]
[1746829106352,0.04113889,103000.0,102990.0,1.45272838]
[1746829107962,0.04113889,103000.0,102990.0,1.4527313]
[1746829109862,0.04113889,103000.0,102990.0,1.4527367]
[1746829110562,0.04113889,103000.0,102990.0,1.4487815]
[1746829111660,0.04113889,103000.0,102990.0,1.44878512]
[1746829111856,0.07203889,103000.0,102990.0,1.44878512]
[1746829113363,0.07203889,103000.0,102990.0,1.4487944]
[1746829113765,0.07203889,103000.0,102990.0,0.7271944]
[1746829113965,0.07203889,103000.0,102990.0,1.4487944]
[1746829115259,0.07203889,103000.0,102990.0,1.44881338]
[1746829116167,0.34037504,103000.0,102990.0,1.37753608]
[1746829116465,0.34037504,103000.0,102990.0,1.44881338]
[1746829116967,0.14621004,103000.0,102990.0,1.44882216]
[1746829118965,0.14621004,103000.0,102990.0,1.44882233]
[1746829120267,0.24510491,103000.0,102990.0,1.44882233]
[1746829120765,0.24510491,103000.0,102990.0,1.44882265]
[1746829122462,0.24510491,103000.0,102990.0,1.44882251]
[1746829125067,0.43926991,103000.0,102990.0,1.44882251]
[1746829125258,0.36509876,103000.0,102990.0,1.44882251]
[1746829126170,0.36509876,103000.0,102990.0,1.44882247]
[1746829127372,0.39539876,103000.0,102990.0,1.44882247]
[1746829128359,0.20123376,103000.0,102990.0,1.44882247]
[1746829128758,0.20323376,103000.0,102990.0,1.44682247]
[1746829128963,0.20323376,103000.0,102990.0,0.72522247]
[1746829129163,0.20323376,103000.0,102990.0,1.44682247]
[1746829130373,0.20323376,103000.0,102990.0,0.72522247]
[1746829130576,0.20323376,103000.0,102990.0,1.44682247]
[1746829131374,0.20223376,103000.0,102990.0,1.44782247]
[1746829132174,0.36123376,103000.0,102990.0,1.44782247]
[1746829132371,0.36123376,103000.0,102990.0,1.44882247]
[1746829132565,0.4355247,103000.0,102990.0,1.44882247]
[1746829133476,0.2755247,103000.0,102990.0,1.44882247]
[1746829135172,0.3743247,103000.0,102990.0,1.52009977]
[1746829135380,0.3743247,103000.0,102990.0,1.69882247]
[1746829136079,0.2143247,103000.0,102990.0,1.69882247]
[1746829136682,0.2472247,103000.0,102990.0,1.69882247]
[1746829137472,0.2775247,103000.0,102990.0,1.40882247]
[1746829137673,0.6575247,103000.0,102990.0,1.31882247]
[1746829139680,0.48433889,103000.0,102990.0,1.31882247]
[1746829140068,0.48433889,103000.0,102990.0,1.31866411]
[1746829141180,0.64433889,103000.0,102990.0,1.31866411]
[1746829142075,0.64433889,103000.0,102990.0,1.31859536]
[1746829142382,0.10433889,103000.0,102990.0,1.31875372]
[1746829142575,0.07403889,103000.0,102990.0,1.45875372]
[1746829142771,0.07403889,103000.0,102990.0,1.69875372]
[1746829143280,0.14832983,103000.0,102990.0,1.69875372]
[1746829144684,0.14832983,103000.0,102990.0,1.69875253]
[1746829145685,0.14832983,103000.0,102990.0,1.69875222]
[1746829146785,0.07403889,103000.0,102990.0,1.69875222]
[1746829149387,0.07403889,103000.0,102990.0,1.6987519]
[1746829153087,0.07403889,103000.0,102990.0,1.69875383]
[1746829154794,0.07403889,103000.0,102990.0,1.69875392]
[1746829156089,0.23403889,103000.0,102990.0,1.69875392]
[1746829157589,0.26403889,103000.0,102990.0,1.69875392]
[1746829157989,0.62403889,103000.0,102990.0,1.31875392]
[1746829160292,0.46403889,103000.0,102990.0,1.31875404]
[1746829161197,0.62403889,103000.0,102990.0,1.31875404]
[1746829161992,0.62403889,103000.0,102990.0,1.63875404]
[1746829163392,0.62403889,103000.0,102990.0,1.64875404]
[1746829163786,0.62403889,103000.0,102990.0,1.64875838]
[1746829164394,0.69832983,103000.0,102990.0,1.64875838]
[1746829166495,0.69832983,103000.0,102990.0,1.67875838]
[1746829167497,0.69832983,103000.0,102990.0,1.67876323]
[1746829169400,0.69832983,103000.0,102990.0,1.31876323]
[1746829169590,0.69832983,103000.0,102990.0,1.67876323]
[1746829171198,0.69832983,103000.0,102990.0,1.67870634]
[1746829173202,0.69832983,103000.0,102990.0,1.6787041]
[1746829174506,0.69832983,103000.0,102990.0,1.3187041]
[1746829175003,0.69832983,103000.0,102990.0,1.6887041]
[1746829175690,0.69832983,103000.0,102990.0,1.6987041]
[1746829176610,0.69932983,103000.0,102990.0,1.6977041]
[1746829176897,0.69932983,103000.0,102990.0,1.6967041]
[1746829177105,0.70032983,103000.0,102990.0,1.6967041]
[1746829177402,0.69932983,103000.0,102990.0,1.6967041]
[1746829177603,0.69932983,103000.0,102990.0,1.6977041]
[1746829178406,0.69832983,103000.0,102990.0,1.6977041]
[1746829178603,0.69832983,103000.0,102990.0,1.69870471]
[1746829179808,0.69832983,103000.0,102990.0,1.31870471]
[1746829180202,0.69832983,103000.0,102990.0,1.64870471]
[1746829180399,0.69832983,103000.0,102990.0,1.31870471]
[1746829181207,0.69832983,103000.0,102990.0,1.68870471]
[1746829182410,0.33832983,103000.0,102990.0,1.6887068]
[1746829195211,0.33832983,103000.0,102990.0,1.6887053]
[1746829200418,0.33832983,103000.0,102990.0,1.68870586]
[1746829200613,0.33832983,103000.0,102990.0,1.67387233]
[1746829200806,0.33832983,103000.0,102990.0,1.68870586]
[1746829203020,0.33832983,103000.0,102990.0,1.68870585]
[1746829205624,0.33832983,103000.0,102990.0,1.68870475]
[1746829206032,0.30832983,103000.0,102990.0,1.68870475]
[1746829206232,0.08262983,103000.0,102990.0,1.75998205]
[1746829206628,0.29159487,103010.0,103000.0,0.194165]
[1746829206828,0.29159487,103010.0,103000.0,1.28455202]
[1746829207027,0.25889487,103010.0,103000.0,1.35582932]
[1746829207230,0.09889487,103010.0,103000.0,1.45291198]
[1746829207433,0.12361312,103020.0,103010.0,0.1941461]
[1746829207730,0.12361312,103020.0,103010.0,1.35169312]
[1746829208140,0.31631312,103020.0,103010.0,1.48157578]
[1746829208335,0.31631312,103020.0,103010.0,1.38157578]
[1746829208533,0.31631312,103020.0,103010.0,1.38257578]
[1746829209231,0.31631312,103020.0,103010.0,1.31126672]
[1746829209540,0.34681312,103020.0,103010.0,1.31126672]
[1746829209840,0.34681312,103020.0,103010.0,1.31226672]
[1746829210033,0.2232,103020.0,103010.0,1.31226672]
[1746829214641,0.2232,103020.0,103010.0,1.31224746]
[1746829215043,0.2232,103020.0,103010.0,1.41224746]
[1746829216940,0.2232,103020.0,103010.0,1.31224746]
[1746829217743,0.2232,103020.0,103010.0,1.24097016]
[1746829217944,0.2232,103020.0,103010.0,1.31224746]
[1746829223750,0.2232,103020.0,103010.0,1.31224095]
[1746829225744,0.2232,103020.0,103010.0,0.95144095]
[1746829225951,0.2232,103020.0,103010.0,1.67304095]
[1746829227748,0.2232,103020.0,103010.0,1.74431825]
[1746829228153,0.2232,103020.0,103010.0,2.90663825]
[1746829232664,0.2232,103020.0,103010.0,2.90665677]
[1746829234357,0.2232,103020.0,103010.0,2.90666792]
[1746829237966,0.2232,103020.0,103010.0,2.90669199]
[1746829238560,0.2232,103020.0,103010.0,3.05515921]
[1746829239148,0.03907,103030.0,103010.0,2.86101311]
[1746829239353,0.03907,103030.0,103020.0,0.9094019]
[1746829239554,0.03907,103030.0,103020.0,1.24423053]
[1746829239959,0.03907,103030.0,103020.0,1.34130377]
[1746829240156,0.19907,103030.0,103020.0,1.34130377]
[1746829240356,0.20007,103030.0,103020.0,1.34130377]
[1746829241160,0.20107,103030.0,103020.0,1.34130377]
[1746829242160,0.1938,103030.0,103020.0,1.35602438]
[1746829242353,0.2259,103030.0,103020.0,1.35602438]
[1746829242554,0.2249,103030.0,103020.0,1.35602438]
[1746829242755,0.2259,103030.0,103020.0,1.35602438]
[1746829245151,0.2259,103030.0,103020.0,1.25404708]
[1746829245666,0.2259,103030.0,103020.0,1.32532438]
[1746829245864,0.2259,103030.0,103020.0,1.25404708]
[1746829246163,0.23317,103030.0,103020.0,1.25404708]
[1746829247367,0.23317,103030.0,103020.0,1.37236708]
[1746829248358,0.23317,103030.0,103020.0,1.44364438]
[1746829248759,0.23317,103030.0,103020.0,1.44364138]
[1746829252261,0.23317,103030.0,103020.0,1.30108678]
[1746829252469,0.23317,103030.0,103020.0,1.37236408]
[1746829252768,0.61317,103030.0,103020.0,1.05236408]
[1746829253068,0.41317,103030.0,103020.0,1.05236408]
[1746829254171,0.41317,103030.0,103020.0,1.12364229]
[1746829255871,0.41317,103030.0,103020.0,1.12364289]
[1746829257069,0.41317,103030.0,103020.0,1.05236559]
[1746829257664,0.41317,103030.0,103020.0,1.39236646]
[1746829257970,0.41317,103030.0,103020.0,1.46364376]
[1746829258471,0.41317,103030.0,103020.0,1.39236646]
[1746829258671,0.41317,103030.0,103020.0,1.05236646]
[1746829259477,0.41317,103030.0,103020.0,1.12364376]
[1746829259973,0.41317,103030.0,103020.0,1.05236646]
[1746829260174,0.44407,103030.0,103020.0,1.05236646]
[1746829260977,0.44407,103030.0,103020.0,1.05236703]
[1746829263076,0.5153473,103030.0,103020.0,0.94980973]
[1746829263266,0.5153473,103030.0,103020.0,0.94980959]
[1746829263469,0.63407,103030.0,103020.0,1.02108689]
[1746829264079,0.63407,103030.0,103020.0,1.02108646]
[1746829264274,0.63407,103030.0,103020.0,1.05208646]
[1746829265877,0.63407,103030.0,103020.0,1.05208386]
[1746829266273,0.39407,103030.0,103020.0,1.48336116]
[1746829266474,0.26407,103030.0,103020.0,1.48336116]
[1746829266675,0.26407,103030.0,103020.0,1.51636116]
[1746829267176,0.20017,103030.0,103020.0,1.50153575]
[1746829267370,0.16927,103030.0,103020.0,1.50153575]
[1746829267969,0.16927,103030.0,103020.0,1.51635983]
[1746829269785,0.16927,103030.0,103020.0,1.51635886]
[1746829270078,0.20237,103030.0,103020.0,1.87715886]
[1746829271078,0.23497,103030.0,103020.0,1.87715886]
[1746829271473,0.23497,103030.0,103020.0,1.87715882]
[1746829271673,0.23497,103030.0,103020.0,1.80588152]
[1746829272079,0.23497,103030.0,103020.0,1.80588155]
[1746829272279,0.23497,103030.0,103020.0,1.45588155]
[1746829272480,0.23497,103030.0,103020.0,1.52715885]
[1746829272982,0.23497,103030.0,103020.0,1.52715904]
[1746829273586,0.23497,103030.0,103020.0,1.5271591]
[1746829274279,0.23497,103030.0,103020.0,0.8055591]
[1746829274481,0.23497,103030.0,103020.0,1.5271591]
[1746829275182,0.26667,103030.0,103020.0,1.5271591]
[1746829275376,0.26667,103030.0,103020.0,1.52715917]
[1746829276478,0.26667,103030.0,103020.0,1.51233575]
[1746829281684,0.23497,103030.0,103020.0,1.51233575]
[1746829281887,0.20237,103030.0,103020.0,1.51233575]
[1746829283383,0.20237,103030.0,103020.0,1.69233575]
[1746829286882,0.20137,103030.0,103020.0,1.69233575]
[1746829287188,0.20137,103030.0,103020.0,1.69333575]
[1746829287384,0.23177,103030.0,103020.0,1.55078115]
[1746829287585,0.23277,103030.0,103020.0,1.69333575]
[1746829288187,0.23177,103030.0,103020.0,1.69333575]
[1746829288389,0.23177,103030.0,103020.0,1.69433575]
[1746829288984,0.23177,103030.0,103020.0,1.69233575]
[1746829289189,0.23377,103030.0,103020.0,1.69233575]
[1746829289782,0.23377,103030.0,103020.0,0.97073575]
[1746829289984,0.23377,103030.0,103020.0,1.69233575]
[1746829290591,0.23277,103030.0,103020.0,1.69233575]
[1746829290783,0.26187,103030.0,103020.0,1.69433575]
[1746829293594,0.23177,103030.0,103020.0,1.69433575]
[1746829293889,0.20037,103030.0,103020.0,1.69433575]
[1746829294787,0.16727,103030.0,103020.0,1.69433575]
[1746829294987,0.16727,103030.0,103020.0,1.55178115]
[1746829295192,0.16727,103030.0,103020.0,1.69433575]
[1746829312613,0.16727,103030.0,103020.0,2.85653575]
[1746829314019,0.19967,103030.0,103020.0,2.85653575]
[1746829319520,0.22997,103030.0,103020.0,2.85653575]
[1746829323223,0.22997,103030.0,103020.0,2.13493575]
[1746829323520,0.22997,103030.0,103020.0,2.85653575]
[1746829328824,0.22997,103030.0,103020.0,2.87136585]
[1746829332229,0.26017,103030.0,103020.0,2.87136585]
[1746829332431,0.26017,103030.0,103020.0,2.87136566]
[1746829332629,0.26017,103030.0,103020.0,2.72881106]
[1746829332931,0.26017,103030.0,103020.0,2.87136566]
[1746829334830,0.26017,103030.0,103020.0,2.83836566]
[1746829336718,0.26017,103030.0,103020.0,2.98683288]
[1746829339729,0.26017,103030.0,103020.0,2.97200297]
[1746829340033,0.26017,103030.0,103020.0,2.986834]
[1746829343737,0.26017,103030.0,103020.0,3.018434]
[1746829345333,0.26017,103030.0,103020.0,3.01842897]
[1746829346930,0.19967,103030.0,103020.0,3.01842897]
[1746829348340,0.23207,103030.0,103020.0,3.01842897]
[1746829349040,0.23207,103030.0,103020.0,3.0184248]
[1746829350944,0.23207,103030.0,103020.0,3.01842391]
[1746829356947,0.19967,103030.0,103020.0,3.01842391]
[1746829358136,0.19967,103030.0,103020.0,3.01842205]
[1746829361750,0.23127,103030.0,103020.0,3.01842205]
[1746829361946,0.23127,103030.0,103020.0,3.01842138]
[1746829365552,0.23127,103030.0,103020.0,3.01841864]
[1746829366254,0.23127,103030.0,103020.0,2.86995142]
[1746829369050,0.47127,103030.0,103020.0,2.54599682]
[1746829369251,0.50227,103030.0,103020.0,2.66823682]
[1746829369551,0.50227,103030.0,103020.0,2.42727412]
[1746829369757,0.50227,103030.0,103020.0,2.54955412]
[1746829372667,0.50227,103030.0,103020.0,2.54953353]